[Event "Titled Tuesday Blitz August 1 Early 2023"]
[White "Nasir, Zehn"]
[Black "Bouget, Alexandre"]
[WhiteFideId "2613239"]
[BlackFideId "681318"]
[WhiteElo "2621"]
[BlackElo "2425"]
[Result "1-0"]
[Round "5"]
[TimeControl "180+1"]
[Date "2023.08.01"]
[WhiteClock "0:00:09"]
[BlackClock "0:00:00"]
[Board "84"]

1. d4 {[%clk 0:02:50]}  g6 {[%clk 0:02:58]} 2. Bf4 {[%clk 0:02:49]}  Bg7 {[%clk 0:02:59]} 3. Nc3 {[%clk 0:02:48]}  d6 {[%clk 0:03:00]} 4. e4 {[%clk 0:02:48]}  c5 {[%clk 0:03:00]} 5. dxc5 {[%clk 0:02:47]}  Qa5 {[%clk 0:02:56]} 6. Ne2 {[%clk 0:02:38]}  Qxc5 {[%clk 0:02:54]} 7. Qd2 {[%clk 0:02:34]}  Nc6 {[%clk 0:02:51]} 8. Be3 {[%clk 0:02:30]}  Qa5 {[%clk 0:02:50]} 9. Nd4 {[%clk 0:02:29]}  Nf6 {[%clk 0:02:47]} 10. Be2 {[%clk 0:02:24]}  O-O {[%clk 0:02:44]} 11. O-O {[%clk 0:02:23]}  Ng4 {[%clk 0:02:41]} 12. Bxg4 {[%clk 0:02:17]}  Bxg4 {[%clk 0:02:42]} 13. Nxc6 {[%clk 0:02:06]}  bxc6 {[%clk 0:02:41]} 14. Bh6 {[%clk 0:02:07]}  Rab8 {[%clk 0:02:35]} 15. Bxg7 {[%clk 0:02:06]}  Kxg7 {[%clk 0:02:36]} 16. b3 {[%clk 0:01:52]}  Rfd8 {[%clk 0:02:06]} 17. Rfe1 {[%clk 0:01:39]}  Qc5 {[%clk 0:01:54]} 18. Na4 {[%clk 0:01:28]}  Qb4 {[%clk 0:01:44]} 19. Qg5 {[%clk 0:01:25]}  Be6 {[%clk 0:01:34]} 20. Qxe7 {[%clk 0:01:20]}  Rd7 {[%clk 0:01:34]} 21. Qg5 {[%clk 0:01:19]}  c5 {[%clk 0:01:32]} 22. Rad1 {[%clk 0:01:15]}  c4 {[%clk 0:01:30]} 23. e5 {[%clk 0:01:07]}  d5 {[%clk 0:01:30]} 24. Qe3 {[%clk 0:00:56]}  d4 {[%clk 0:01:25]} 25. Qf4 {[%clk 0:00:48]}  d3 {[%clk 0:01:21]} 26. cxd3 {[%clk 0:00:45]}  cxb3 {[%clk 0:01:20]} 27. Qxb4 {[%clk 0:00:41]}  Rxb4 {[%clk 0:01:21]} 28. axb3 {[%clk 0:00:34]}  Bxb3 {[%clk 0:01:21]} 29. Nc5 {[%clk 0:00:32]}  Bxd1 {[%clk 0:01:09]} 30. Nxd7 {[%clk 0:00:32]}  Bc2 {[%clk 0:01:09]} 31. Nc5 {[%clk 0:00:30]}  a5 {[%clk 0:01:02]} 32. Rc1 {[%clk 0:00:29]}  a4 {[%clk 0:00:42]} 33. g3 {[%clk 0:00:24]}  Rb2 {[%clk 0:00:33]} 34. Ra1 {[%clk 0:00:17]}  Rb4 {[%clk 0:00:31]} 35. d4 {[%clk 0:00:18]}  Rxd4 {[%clk 0:00:29]} 36. f4 {[%clk 0:00:16]}  Rc4 {[%clk 0:00:29]} 37. Nb7 {[%clk 0:00:15]}  Bb3 {[%clk 0:00:24]} 38. Nd6 {[%clk 0:00:15]}  Rc2 {[%clk 0:00:22]} 39. Nb5 {[%clk 0:00:15]}  Bd5 {[%clk 0:00:18]} 40. Rxa4 {[%clk 0:00:10]}  Rg2+ {[%clk 0:00:17]} 41. Kf1 {[%clk 0:00:10]}  Rxh2 {[%clk 0:00:17]} 42. Ra7 {[%clk 0:00:11]}  Bc4+ {[%clk 0:00:16]} 43. Kg1 {[%clk 0:00:10]}  Rd2 {[%clk 0:00:13]} 44. Nd6 {[%clk 0:00:10]}  Bd5 {[%clk 0:00:13]} 45. Kf1 {[%clk 0:00:10]}  h5 {[%clk 0:00:11]} 46. Ra5 {[%clk 0:00:09]}  Be6 {[%clk 0:00:05]} 47. Ra3 {[%clk 0:00:09]}  Kh6 {[%clk 0:00:04]} 48. Ne4 {[%clk 0:00:09]}  Rb2 {[%clk 0:00:00]} 49. Ng5 {[%clk 0:00:09]} 1-0


[Site "https://www.chess.com"]

[Event "Titled Tuesday Blitz August 1 Early 2023"]
[White "Belov, Alexei"]
[Black "Tymrakiewicz, Rafal"]
[WhiteFideId "4128206"]
[BlackFideId "1108832"]
[WhiteElo "2617"]
[BlackElo "2406"]
[Result "1-0"]
[Round "5"]
[TimeControl "180+1"]
[Date "2023.08.01"]
[WhiteClock "0:00:11"]
[BlackClock "0:00:00"]
[Board "85"]

1. e4 {[%clk 0:03:00]}  Nf6 {[%clk 0:02:59]} 2. e5 {[%clk 0:03:00]}  Nd5 {[%clk 0:02:59]} 3. d4 {[%clk 0:03:00]}  d6 {[%clk 0:02:59]} 4. Nf3 {[%clk 0:03:00]}  g6 {[%clk 0:02:59]} 5. Bc4 {[%clk 0:03:00]}  Nb6 {[%clk 0:03:00]} 6. Bb3 {[%clk 0:03:00]}  d5 {[%clk 0:03:00]} 7. O-O {[%clk 0:02:59]}  Nc6 {[%clk 0:03:00]} 8. c3 {[%clk 0:02:58]}  Bg7 {[%clk 0:03:00]} 9. Re1 {[%clk 0:02:56]}  O-O {[%clk 0:02:57]} 10. Nbd2 {[%clk 0:02:56]}  f6 {[%clk 0:02:46]} 11. exf6 {[%clk 0:02:54]}  exf6 {[%clk 0:02:46]} 12. Nf1 {[%clk 0:02:53]}  Na5 {[%clk 0:02:40]} 13. Bc2 {[%clk 0:02:50]}  Re8 {[%clk 0:02:25]} 14. Ng3 {[%clk 0:02:46]}  Bg4 {[%clk 0:02:18]} 15. Rxe8+ {[%clk 0:02:31]}  Qxe8 {[%clk 0:02:17]} 16. b3 {[%clk 0:02:29]}  Bxf3 {[%clk 0:01:50]} 17. Qxf3 {[%clk 0:02:15]}  Qe1+ {[%clk 0:01:49]} 18. Nf1 {[%clk 0:02:15]}  Re8 {[%clk 0:01:33]} 19. Rb1 {[%clk 0:01:56]}  Qe2 {[%clk 0:01:28]} 20. Qxe2 {[%clk 0:01:38]}  Rxe2 {[%clk 0:01:27]} 21. Bd2 {[%clk 0:01:39]}  Nc6 {[%clk 0:01:17]} 22. Bd3 {[%clk 0:01:34]}  Re7 {[%clk 0:01:15]} 23. a4 {[%clk 0:01:34]}  a6 {[%clk 0:01:09]} 24. Ne3 {[%clk 0:01:32]}  Rd7 {[%clk 0:00:41]} 25. Ra1 {[%clk 0:01:28]}  Ne7 {[%clk 0:00:40]} 26. a5 {[%clk 0:01:28]}  Nbc8 {[%clk 0:00:39]} 27. c4 {[%clk 0:01:24]}  f5 {[%clk 0:00:31]} 28. Bc3 {[%clk 0:01:22]}  c5 {[%clk 0:00:28]} 29. Nc2 {[%clk 0:01:04]}  Nd6 {[%clk 0:00:22]} 30. Re1 {[%clk 0:00:52]}  dxc4 {[%clk 0:00:22]} 31. bxc4 {[%clk 0:00:49]}  Nc6 {[%clk 0:00:16]} 32. Rb1 {[%clk 0:00:25]}  Nxd4 {[%clk 0:00:09]} 33. Nxd4 {[%clk 0:00:24]}  Bxd4 {[%clk 0:00:08]} 34. Bxd4 {[%clk 0:00:23]}  cxd4 {[%clk 0:00:09]} 35. c5 {[%clk 0:00:23]}  Ne4 {[%clk 0:00:08]} 36. Rc1 {[%clk 0:00:15]}  Kg7 {[%clk 0:00:03]} 37. f3 {[%clk 0:00:13]}  Nc3 {[%clk 0:00:00]} 38. Re1 {[%clk 0:00:11]} 1-0


[Site "https://www.chess.com"]

[Event "Titled Tuesday Blitz August 1 Early 2023"]
[White "FREDERICKtheMATE"]
[Black "musclemonster12"]
[WhiteElo "2422"]
[BlackElo "2604"]
[Result "0-1"]
[Round "5"]
[TimeControl "180+1"]
[Date "2023.08.01"]
[WhiteClock "0:00:13"]
[BlackClock "0:00:44"]
[Board "86"]

1. Nf3 {[%clk 0:02:59]}  Nf6 {[%clk 0:02:57]} 2. g3 {[%clk 0:03:00]}  d5 {[%clk 0:02:50]} 3. Bg2 {[%clk 0:03:00]}  c5 {[%clk 0:02:48]} 4. O-O {[%clk 0:02:59]}  e6 {[%clk 0:02:48]} 5. c4 {[%clk 0:02:57]}  d4 {[%clk 0:02:48]} 6. e3 {[%clk 0:02:56]}  Nc6 {[%clk 0:02:49]} 7. exd4 {[%clk 0:02:55]}  cxd4 {[%clk 0:02:50]} 8. d3 {[%clk 0:02:55]}  Bd6 {[%clk 0:02:50]} 9. Re1 {[%clk 0:02:53]}  O-O {[%clk 0:02:50]} 10. Nbd2 {[%clk 0:02:53]}  e5 {[%clk 0:02:48]} 11. a3 {[%clk 0:02:51]}  a5 {[%clk 0:02:47]} 12. Ne4 {[%clk 0:02:48]}  Nxe4 {[%clk 0:02:45]} 13. dxe4 {[%clk 0:02:49]}  a4 {[%clk 0:02:42]} 14. Bd2 {[%clk 0:02:47]}  f6 {[%clk 0:02:38]} 15. Rc1 {[%clk 0:02:42]}  Be6 {[%clk 0:02:38]} 16. Nh4 {[%clk 0:02:38]}  g6 {[%clk 0:02:26]} 17. Qc2 {[%clk 0:02:25]}  Bc5 {[%clk 0:02:22]} 18. Qd3 {[%clk 0:02:24]}  Na5 {[%clk 0:02:22]} 19. Bxa5 {[%clk 0:02:24]}  Qxa5 {[%clk 0:02:19]} 20. Kh1 {[%clk 0:02:13]}  Rab8 {[%clk 0:02:18]} 21. Bf1 {[%clk 0:02:12]}  Rfc8 {[%clk 0:01:57]} 22. Re2 {[%clk 0:02:01]}  Bf8 {[%clk 0:01:53]} 23. Rec2 {[%clk 0:01:57]}  Rc5 {[%clk 0:01:48]} 24. f4 {[%clk 0:01:54]}  Rbc8 {[%clk 0:01:48]} 25. f5 {[%clk 0:01:48]}  Bf7 {[%clk 0:01:48]} 26. fxg6 {[%clk 0:01:43]}  hxg6 {[%clk 0:01:49]} 27. Qf3 {[%clk 0:01:43]}  Bg7 {[%clk 0:01:14]} 28. Bd3 {[%clk 0:01:30]}  Qb6 {[%clk 0:01:08]} 29. Qg4 {[%clk 0:01:25]}  Kh7 {[%clk 0:01:05]} 30. Rf1 {[%clk 0:01:17]}  Qe6 {[%clk 0:00:57]} 31. Qf3 {[%clk 0:01:07]}  b5 {[%clk 0:00:55]} 32. Rcc1 {[%clk 0:00:33]}  bxc4 {[%clk 0:00:54]} 33. Bc2 {[%clk 0:00:34]}  c3 {[%clk 0:00:52]} 34. bxc3 {[%clk 0:00:27]}  Rxc3 {[%clk 0:00:53]} 35. Qe2 {[%clk 0:00:25]}  d3 {[%clk 0:00:52]} 36. Bxd3 {[%clk 0:00:24]}  Rxc1 {[%clk 0:00:52]} 37. Rxc1 {[%clk 0:00:24]}  Rxc1+ {[%clk 0:00:52]} 38. Kg2 {[%clk 0:00:25]}  Qa2 {[%clk 0:00:52]} 39. Qxa2 {[%clk 0:00:22]}  Bxa2 {[%clk 0:00:53]} 40. Bb5 {[%clk 0:00:22]}  Bb3 {[%clk 0:00:50]} 41. Be8 {[%clk 0:00:21]}  g5 {[%clk 0:00:50]} 42. Nf5 {[%clk 0:00:21]}  Bf8 {[%clk 0:00:50]} 43. h4 {[%clk 0:00:20]}  Bxa3 {[%clk 0:00:50]} 44. h5 {[%clk 0:00:20]}  Bf8 {[%clk 0:00:47]} 45. Bg6+ {[%clk 0:00:20]}  Kg8 {[%clk 0:00:48]} 46. h6 {[%clk 0:00:18]}  a3 {[%clk 0:00:47]} 47. h7+ {[%clk 0:00:18]}  Kh8 {[%clk 0:00:47]} 48. Ne3 {[%clk 0:00:14]}  a2 {[%clk 0:00:47]} 49. Ng4 {[%clk 0:00:14]}  a1=Q {[%clk 0:00:46]} 50. Nxf6 {[%clk 0:00:15]}  Qa2+ {[%clk 0:00:44]} 51. Kf3 {[%clk 0:00:14]}  Bd1+ {[%clk 0:00:43]} 52. Ke3 {[%clk 0:00:13]}  Rc3# {[%clk 0:00:44]} 0-1


[Site "https://www.chess.com"]

[Event "Titled Tuesday Blitz August 1 Early 2023"]
[White "Bettalli, Francesco"]
[Black "Kaczur, Florian"]
[WhiteFideId "2816453"]
[BlackFideId "705098"]
[WhiteElo "2481"]
[BlackElo "2761"]
[Result "0-1"]
[Round "5"]
[TimeControl "180+1"]
[Date "2023.08.01"]
[WhiteClock "0:01:37"]
[BlackClock "0:01:39"]
[Board "96"]

1. e4 {[%clk 0:02:57]}  c5 {[%clk 0:02:58]} 2. Nc3 {[%clk 0:02:55]}  d6 {[%clk 0:02:56]} 3. g3 {[%clk 0:02:51]}  Nc6 {[%clk 0:02:51]} 4. Bg2 {[%clk 0:02:51]}  Nf6 {[%clk 0:02:50]} 5. Nge2 {[%clk 0:02:52]}  h5 {[%clk 0:02:48]} 6. O-O {[%clk 0:02:52]}  h4 {[%clk 0:02:48]} 7. d4 {[%clk 0:02:51]}  hxg3 {[%clk 0:02:41]} 8. hxg3 {[%clk 0:02:50]}  cxd4 {[%clk 0:02:39]} 9. Nxd4 {[%clk 0:02:51]}  Bd7 {[%clk 0:02:39]} 10. Nd5 {[%clk 0:02:50]}  Rc8 {[%clk 0:02:33]} 11. Bg5 {[%clk 0:02:46]}  Ng4 {[%clk 0:02:25]} 12. Nxc6 {[%clk 0:02:45]}  bxc6 {[%clk 0:02:22]} 13. Ne3 {[%clk 0:02:45]}  Qa5 {[%clk 0:02:16]} 14. Bf4 {[%clk 0:02:12]}  Qh5 {[%clk 0:02:05]} 15. Re1 {[%clk 0:02:11]}  g5 {[%clk 0:01:55]} 16. Nxg4 {[%clk 0:02:09]}  gxf4 {[%clk 0:01:40]} 17. Bf3 {[%clk 0:01:37]}  Bxg4 {[%clk 0:01:39]} 18. Bxg4 {[%clk 0:01:37]}  Qh1# {[%clk 0:01:39]} 0-1


[Site "https://www.chess.com"]

[Event "Titled Tuesday Blitz August 1 Early 2023"]
[White "Kazakov, Mikhail"]
[Black "nickVet"]
[WhiteFideId "14102749"]
[WhiteElo "2476"]
[BlackElo "2698"]
[Result "0-1"]
[Round "5"]
[TimeControl "180+1"]
[Date "2023.08.01"]
[WhiteClock "0:00:00"]
[BlackClock "0:00:12"]
[Board "99"]

1. d4 {[%clk 0:03:00]}  d5 {[%clk 0:02:59]} 2. c4 {[%clk 0:03:00]}  c6 {[%clk 0:03:00]} 3. Nc3 {[%clk 0:02:59]}  Nf6 {[%clk 0:03:00]} 4. cxd5 {[%clk 0:02:59]}  cxd5 {[%clk 0:03:00]} 5. Bf4 {[%clk 0:02:58]}  Nc6 {[%clk 0:03:01]} 6. e3 {[%clk 0:02:57]}  a6 {[%clk 0:03:01]} 7. Bd3 {[%clk 0:02:55]}  Bg4 {[%clk 0:02:55]} 8. f3 {[%clk 0:02:54]}  Bh5 {[%clk 0:02:55]} 9. Nge2 {[%clk 0:02:50]}  e6 {[%clk 0:02:51]} 10. Qb3 {[%clk 0:02:38]}  b5 {[%clk 0:02:42]} 11. Rc1 {[%clk 0:02:33]}  Na5 {[%clk 0:02:38]} 12. Qc2 {[%clk 0:02:32]}  Rc8 {[%clk 0:02:33]} 13. Qd1 {[%clk 0:02:16]}  Bg6 {[%clk 0:02:08]} 14. O-O {[%clk 0:01:49]}  Be7 {[%clk 0:02:02]} 15. b3 {[%clk 0:01:33]}  O-O {[%clk 0:01:57]} 16. Bxg6 {[%clk 0:01:32]}  hxg6 {[%clk 0:01:57]} 17. Qd3 {[%clk 0:01:33]}  Ba3 {[%clk 0:01:38]} 18. Rcd1 {[%clk 0:01:29]}  Qd7 {[%clk 0:01:32]} 19. e4 {[%clk 0:01:27]}  dxe4 {[%clk 0:01:21]} 20. fxe4 {[%clk 0:01:28]}  Rfd8 {[%clk 0:01:22]} 21. Bg5 {[%clk 0:01:19]}  Be7 {[%clk 0:01:20]} 22. Qf3 {[%clk 0:01:16]}  Qe8 {[%clk 0:01:18]} 23. Ng3 {[%clk 0:00:53]}  Nd5 {[%clk 0:00:39]} 24. exd5 {[%clk 0:00:32]}  Bxg5 {[%clk 0:00:38]} 25. Nge4 {[%clk 0:00:27]}  Bh6 {[%clk 0:00:36]} 26. d6 {[%clk 0:00:19]}  f5 {[%clk 0:00:29]} 27. Nc5 {[%clk 0:00:19]}  Rxd6 {[%clk 0:00:29]} 28. Rfe1 {[%clk 0:00:19]}  Bg5 {[%clk 0:00:19]} 29. Qg3 {[%clk 0:00:17]}  Qe7 {[%clk 0:00:15]} 30. Re2 {[%clk 0:00:16]}  Bf6 {[%clk 0:00:15]} 31. Red2 {[%clk 0:00:06]}  Rxd4 {[%clk 0:00:15]} 32. Rxd4 {[%clk 0:00:04]}  Qxc5 {[%clk 0:00:15]} 33. Ne2 {[%clk 0:00:00]}  Nc6 {[%clk 0:00:12]} 0-1


[Site "https://www.chess.com"]

[Event "Titled Tuesday Blitz August 1 Early 2023"]
[White "MFatigue"]
[Black "Oleksiyenko, Mykhaylo"]
[BlackFideId "4152417"]
[WhiteElo "2475"]
[BlackElo "2696"]
[Result "0-1"]
[Round "5"]
[TimeControl "180+1"]
[Date "2023.08.01"]
[WhiteClock "0:00:15"]
[BlackClock "0:00:44"]
[Board "100"]

1. e4 {[%clk 0:03:00]}  c5 {[%clk 0:02:59]} 2. a3 {[%clk 0:03:00]}  d5 {[%clk 0:02:51]} 3. exd5 {[%clk 0:03:00]}  Qxd5 {[%clk 0:02:51]} 4. Nc3 {[%clk 0:03:01]}  Qd8 {[%clk 0:02:51]} 5. Nf3 {[%clk 0:03:01]}  Nc6 {[%clk 0:02:51]} 6. Bb5 {[%clk 0:03:01]}  Bd7 {[%clk 0:02:51]} 7. d4 {[%clk 0:03:01]}  cxd4 {[%clk 0:02:43]} 8. Nxd4 {[%clk 0:03:02]}  e5 {[%clk 0:02:41]} 9. Nxc6 {[%clk 0:02:59]}  Bxc6 {[%clk 0:02:37]} 10. Bxc6+ {[%clk 0:02:57]}  bxc6 {[%clk 0:02:38]} 11. Qxd8+ {[%clk 0:02:55]}  Rxd8 {[%clk 0:02:37]} 12. Be3 {[%clk 0:02:55]}  a6 {[%clk 0:02:26]} 13. Ke2 {[%clk 0:02:49]}  Nf6 {[%clk 0:02:23]} 14. Rad1 {[%clk 0:02:35]}  Nd5 {[%clk 0:02:22]} 15. Na4 {[%clk 0:02:24]}  Be7 {[%clk 0:02:18]} 16. c4 {[%clk 0:02:24]}  Nxe3 {[%clk 0:02:17]} 17. Kxe3 {[%clk 0:02:21]}  Bg5+ {[%clk 0:01:57]} 18. Ke4 {[%clk 0:02:16]}  Bd2 {[%clk 0:01:25]} 19. Kf3 {[%clk 0:01:28]}  Ke7 {[%clk 0:01:19]} 20. Ke2 {[%clk 0:01:27]}  Bg5 {[%clk 0:01:14]} 21. Nc5 {[%clk 0:01:20]}  a5 {[%clk 0:01:05]} 22. b3 {[%clk 0:01:02]}  f5 {[%clk 0:01:01]} 23. Nb7 {[%clk 0:00:56]}  Ra8 {[%clk 0:00:48]} 24. Nc5 {[%clk 0:00:35]}  Ra7 {[%clk 0:00:48]} 25. Rd3 {[%clk 0:00:33]}  e4 {[%clk 0:00:49]} 26. Rd4 {[%clk 0:00:29]}  Bf6 {[%clk 0:00:48]} 27. Rd2 {[%clk 0:00:29]}  Bc3 {[%clk 0:00:47]} 28. Rc2 {[%clk 0:00:28]}  Bd4 {[%clk 0:00:46]} 29. Na4 {[%clk 0:00:28]}  Rb8 {[%clk 0:00:45]} 30. Rd1 {[%clk 0:00:28]}  c5 {[%clk 0:00:45]} 31. Rb1 {[%clk 0:00:23]}  Rab7 {[%clk 0:00:44]} 32. b4 {[%clk 0:00:18]}  axb4 {[%clk 0:00:45]} 33. axb4 {[%clk 0:00:15]}  Rxb4 {[%clk 0:00:44]} 0-1


[Site "https://www.chess.com"]

[Event "Titled Tuesday Blitz August 1 Early 2023"]
[White "only_strong_moves"]
[Black "D`Arruda, Ricardo D."]
[BlackFideId "100692"]
[WhiteElo "2690"]
[BlackElo "2473"]
[Result "1-0"]
[Round "5"]
[TimeControl "180+1"]
[Date "2023.08.01"]
[WhiteClock "0:01:01"]
[BlackClock "0:00:33"]
[Board "101"]

1. d4 {[%clk 0:03:00]}  Nf6 {[%clk 0:02:59]} 2. Nc3 {[%clk 0:03:01]}  d5 {[%clk 0:02:58]} 3. Bf4 {[%clk 0:03:01]}  c6 {[%clk 0:02:58]} 4. e3 {[%clk 0:03:01]}  g6 {[%clk 0:02:58]} 5. Nf3 {[%clk 0:03:02]}  Bg7 {[%clk 0:02:58]} 6. Ne5 {[%clk 0:03:02]}  Nbd7 {[%clk 0:02:57]} 7. h4 {[%clk 0:03:03]}  O-O {[%clk 0:02:54]} 8. h5 {[%clk 0:03:02]}  Nxh5 {[%clk 0:02:54]} 9. Rxh5 {[%clk 0:03:02]}  gxh5 {[%clk 0:02:55]} 10. Qxh5 {[%clk 0:03:02]}  Nxe5 {[%clk 0:02:51]} 11. dxe5 {[%clk 0:02:51]}  f5 {[%clk 0:02:34]} 12. Bd3 {[%clk 0:02:41]}  Qe8 {[%clk 0:02:31]} 13. Qh2 {[%clk 0:02:41]}  h5 {[%clk 0:02:00]} 14. Be2 {[%clk 0:02:33]}  Qg6 {[%clk 0:01:56]} 15. Bxh5 {[%clk 0:02:33]}  Qh7 {[%clk 0:01:56]} 16. O-O-O {[%clk 0:02:33]}  Be6 {[%clk 0:01:56]} 17. Rh1 {[%clk 0:02:32]}  Kh8 {[%clk 0:01:50]} 18. Qg1 {[%clk 0:02:28]}  Kg8 {[%clk 0:01:43]} 19. Bf7+ {[%clk 0:02:08]}  Bxf7 {[%clk 0:01:40]} 20. Rxh7 {[%clk 0:02:08]}  Kxh7 {[%clk 0:01:40]} 21. Ne2 {[%clk 0:02:06]}  Rh8 {[%clk 0:01:29]} 22. g4 {[%clk 0:02:00]}  fxg4 {[%clk 0:01:27]} 23. Qxg4 {[%clk 0:01:59]}  e6 {[%clk 0:01:25]} 24. Nd4 {[%clk 0:01:55]}  Rae8 {[%clk 0:01:23]} 25. Nf3 {[%clk 0:01:40]}  Kg8 {[%clk 0:01:21]} 26. Nh4 {[%clk 0:01:32]}  Rh5 {[%clk 0:01:08]} 27. Kd2 {[%clk 0:01:17]}  Kh7 {[%clk 0:01:01]} 28. Nf3 {[%clk 0:01:16]}  Kg8 {[%clk 0:00:52]} 29. Ng5 {[%clk 0:01:15]}  Rh1 {[%clk 0:00:42]} 30. Nxf7 {[%clk 0:01:15]}  Kxf7 {[%clk 0:00:42]} 31. Bg5 {[%clk 0:01:10]}  Reh8 {[%clk 0:00:42]} 32. Qf4+ {[%clk 0:01:03]}  Ke8 {[%clk 0:00:41]} 33. Qb4 {[%clk 0:01:02]}  R8h2 {[%clk 0:00:33]} 34. Qe7# {[%clk 0:01:01]} 1-0


[Site "https://www.chess.com"]

[Event "Titled Tuesday Blitz August 1 Early 2023"]
[White "Gunina, Valentina"]
[Black "Ronka, Erik"]
[WhiteFideId "4167570"]
[BlackFideId "505080"]
[WhiteElo "2687"]
[BlackElo "2471"]
[Result "1-0"]
[Round "5"]
[TimeControl "180+1"]
[Date "2023.08.01"]
[WhiteClock "0:00:46"]
[BlackClock "0:00:01"]
[Board "102"]

1. d4 {[%clk 0:02:59]}  d5 {[%clk 0:02:59]} 2. c4 {[%clk 0:02:59]}  c6 {[%clk 0:02:59]} 3. Nc3 {[%clk 0:02:58]}  Nf6 {[%clk 0:03:00]} 4. e3 {[%clk 0:02:58]}  e6 {[%clk 0:03:00]} 5. Nf3 {[%clk 0:02:57]}  Nbd7 {[%clk 0:03:00]} 6. Be2 {[%clk 0:02:57]}  dxc4 {[%clk 0:02:59]} 7. a4 {[%clk 0:02:55]}  Bd6 {[%clk 0:02:48]} 8. Nd2 {[%clk 0:02:55]}  O-O {[%clk 0:02:47]} 9. Nxc4 {[%clk 0:02:55]}  Bc7 {[%clk 0:02:47]} 10. a5 {[%clk 0:02:53]}  e5 {[%clk 0:02:35]} 11. O-O {[%clk 0:02:53]}  exd4 {[%clk 0:02:34]} 12. exd4 {[%clk 0:02:52]}  Re8 {[%clk 0:02:22]} 13. Bg5 {[%clk 0:02:41]}  Nf8 {[%clk 0:02:02]} 14. Ne5 {[%clk 0:02:30]}  Be6 {[%clk 0:01:53]} 15. Bd3 {[%clk 0:02:20]}  Ng6 {[%clk 0:01:47]} 16. Bxg6 {[%clk 0:01:56]}  hxg6 {[%clk 0:01:48]} 17. a6 {[%clk 0:01:56]}  bxa6 {[%clk 0:01:35]} 18. Re1 {[%clk 0:01:47]}  Qd6 {[%clk 0:01:20]} 19. Rxa6 {[%clk 0:01:43]}  Qb4 {[%clk 0:01:14]} 20. Rxc6 {[%clk 0:01:38]}  Bb6 {[%clk 0:00:56]} 21. d5 {[%clk 0:01:30]}  Bf5 {[%clk 0:00:55]} 22. Bxf6 {[%clk 0:01:27]}  gxf6 {[%clk 0:00:55]} 23. Rxf6 {[%clk 0:01:24]}  Qxb2 {[%clk 0:00:54]} 24. Rxf5 {[%clk 0:01:07]}  Qxc3 {[%clk 0:00:43]} 25. Rf3 {[%clk 0:01:06]}  Qb4 {[%clk 0:00:30]} 26. g3 {[%clk 0:01:00]}  Rad8 {[%clk 0:00:29]} 27. Re2 {[%clk 0:00:54]}  Qb5 {[%clk 0:00:10]} 28. Rd3 {[%clk 0:00:50]}  Bc7 {[%clk 0:00:07]} 29. Nc6 {[%clk 0:00:48]}  Rd7 {[%clk 0:00:05]} 30. Rxe8+ {[%clk 0:00:48]}  Kg7 {[%clk 0:00:05]} 31. Qa1+ {[%clk 0:00:47]}  f6 {[%clk 0:00:04]} 32. Rde3 {[%clk 0:00:46]}  Qxd5 {[%clk 0:00:03]} 33. R3e7+ {[%clk 0:00:45]}  Rxe7 {[%clk 0:00:04]} 34. Rxe7+ {[%clk 0:00:46]}  Kh6 {[%clk 0:00:01]} 35. Rxc7 {[%clk 0:00:46]} 1-0


[Site "https://www.chess.com"]

[Event "Titled Tuesday Blitz August 1 Early 2023"]
[White "Sokolovsky, Yahli"]
[Black "Yashmetov, Mikhail"]
[WhiteFideId "2820242"]
[BlackFideId "24198900"]
[WhiteElo "2686"]
[BlackElo "2467"]
[Result "1-0"]
[Round "5"]
[TimeControl "180+1"]
[Date "2023.08.01"]
[WhiteClock "0:01:11"]
[BlackClock "0:00:01"]
[Board "103"]

1. b3 {[%clk 0:03:00]}  e5 {[%clk 0:02:59]} 2. Bb2 {[%clk 0:03:01]}  Nc6 {[%clk 0:02:59]} 3. e3 {[%clk 0:03:02]}  Nf6 {[%clk 0:02:59]} 4. Nf3 {[%clk 0:03:02]}  Bd6 {[%clk 0:02:59]} 5. d4 {[%clk 0:03:00]}  exd4 {[%clk 0:02:46]} 6. exd4 {[%clk 0:03:00]}  O-O {[%clk 0:02:38]} 7. Be2 {[%clk 0:03:01]}  b6 {[%clk 0:02:28]} 8. O-O {[%clk 0:02:57]}  Bb7 {[%clk 0:02:22]} 9. d5 {[%clk 0:02:55]}  Ne7 {[%clk 0:02:23]} 10. Bxf6 {[%clk 0:02:54]}  gxf6 {[%clk 0:02:22]} 11. c4 {[%clk 0:02:54]}  Ng6 {[%clk 0:02:21]} 12. Bd3 {[%clk 0:02:43]}  f5 {[%clk 0:02:14]} 13. Bxf5 {[%clk 0:02:31]}  Qf6 {[%clk 0:02:13]} 14. Qc2 {[%clk 0:02:32]}  Rfe8 {[%clk 0:01:29]} 15. Nc3 {[%clk 0:02:05]}  Re7 {[%clk 0:01:19]} 16. Rae1 {[%clk 0:02:01]}  Rae8 {[%clk 0:01:18]} 17. Bxd7 {[%clk 0:01:56]}  Rxe1 {[%clk 0:01:09]} 18. Nxe1 {[%clk 0:01:48]}  Re5 {[%clk 0:01:04]} 19. Nf3 {[%clk 0:01:41]}  Rh5 {[%clk 0:01:03]} 20. Ne4 {[%clk 0:01:37]}  Qf4 {[%clk 0:00:59]} 21. Nxd6 {[%clk 0:01:37]}  Qxd6 {[%clk 0:00:58]} 22. Bg4 {[%clk 0:01:36]}  Rh6 {[%clk 0:00:57]} 23. Qf5 {[%clk 0:01:35]}  Ne7 {[%clk 0:00:53]} 24. Qd7 {[%clk 0:01:32]}  Kg7 {[%clk 0:00:44]} 25. Re1 {[%clk 0:01:24]}  Qxd7 {[%clk 0:00:34]} 26. Bxd7 {[%clk 0:01:25]}  Kf8 {[%clk 0:00:29]} 27. Ng5 {[%clk 0:01:19]}  Rh5 {[%clk 0:00:26]} 28. f4 {[%clk 0:01:20]}  Bc8 {[%clk 0:00:22]} 29. Rxe7 {[%clk 0:01:19]}  Kxe7 {[%clk 0:00:21]} 30. Bxc8 {[%clk 0:01:20]}  Rh6 {[%clk 0:00:17]} 31. Ne4 {[%clk 0:01:17]}  Rg6 {[%clk 0:00:13]} 32. Bf5 {[%clk 0:01:15]}  Rg7 {[%clk 0:00:13]} 33. g4 {[%clk 0:01:14]}  h6 {[%clk 0:00:13]} 34. Kf2 {[%clk 0:01:13]}  f6 {[%clk 0:00:12]} 35. h4 {[%clk 0:01:14]}  Rg8 {[%clk 0:00:12]} 36. h5 {[%clk 0:01:14]}  a5 {[%clk 0:00:11]} 37. Be6 {[%clk 0:01:14]}  Ra8 {[%clk 0:00:11]} 38. Ng3 {[%clk 0:01:14]}  a4 {[%clk 0:00:05]} 39. Nf5+ {[%clk 0:01:15]}  Kf8 {[%clk 0:00:05]} 40. b4 {[%clk 0:01:16]}  b5 {[%clk 0:00:04]} 41. c5 {[%clk 0:01:14]}  a3 {[%clk 0:00:03]} 42. d6 {[%clk 0:01:13]}  cxd6 {[%clk 0:00:03]} 43. c6 {[%clk 0:01:13]}  Ra7 {[%clk 0:00:02]} 44. Nxd6 {[%clk 0:01:09]}  Rc7 {[%clk 0:00:01]} 45. Bd7 {[%clk 0:01:09]}  Ke7 {[%clk 0:00:02]} 46. Nxb5 {[%clk 0:01:10]}  Rxd7 {[%clk 0:00:01]} 47. cxd7 {[%clk 0:01:11]}  Kxd7 {[%clk 0:00:01]} 48. Nxa3 {[%clk 0:01:11]} 1-0


[Site "https://www.chess.com"]